Cogmind - Beta 15 @@@ ROGUE MODE // 2025.07.02 @ 20:37:08 Player: beans Result: Destroyed by H-55 Commando with Assault Rifle Performance ------------- Evolutions (2) 1000 Regions Visited (7) 1400 Robots Destroyed (134) 670 Value Destroyed (3089) 3089 Prototype IDs (28) 560 Alien Tech Used (0) 0 Bonus (470) 470 TOTAL SCORE: 7189 Bonus ------- High Alert Combat Kills 170 Aligned with FarCom 300 Cogmind --------- Core Integrity 0/550 Matter 151/300 Energy 53/100 System Corruption 0% Temperature Cool (24) Movement Core (50) Location -8/Materials Parts ------- > --- POWER (1) -------- (None) > --- PROPULSION (2) --- (None) > --- UTILITY (5) ------ (None) > --- WEAPON (3) ------- (None) > --- INVENTORY (5) ---- Heavy EM Shotgun Flak Cannon Signal Generator Peak State ------------ > --- POWER ------------ Light Angular Momentum Engine > --- PROPULSION ------- Carbon-fiber Leg Carbon-fiber Leg > --- UTILITY ---------- Improved Heat Sink Improved Heat Sink Advanced Visual Processing Unit > --- WEAPON ----------- Heavy Laser Minigun Minigun > --- INVENTORY -------- Advanced Beam Cannon Shotgun Bore Cannon Rocket Launcher Signal Generator [Rating: 31] Favorites ----------- Power Nuclear Core Engine Ion Engine Power Core Nuclear Core Propulsion Carbon-fiber Leg Treads Light Treads Leg Carbon-fiber Leg Utility Heat Sink Device Heat Sink Processor Advanced Visual Processing Unit Protection Propulsion Shielding Weapon Minigun Energy Gun EM Pulse Gun Energy Cannon Advanced Beam Cannon Ballistic Gun Minigun Ballistic Cannon Bore Cannon Launcher Rocket Launcher Build | -11 -10 -10 -9 -9 -9 -8 -8 ------- Run | Yrd Mat Min Mat Min Exi Min Mat Slots Evolved 4 | . . . 2 . . . 2 Power . | . . . . . . . . Propulsion . | . . . . . . . . Utility 3 | . . . 1 . . . 2 Weapon 1 | . . . 1 . . . . Parts Attached 37 | 5 1 1 15 3 . 6 6 Power 8 | 1 . . 4 . . 2 1 Engine 7 | 1 . . 3 . . 2 1 Core 1 | . . . 1 . . . . Reactor . | . . . . . . . . Propulsion 6 | 2 . . 3 . . 1 . Treads 3 | 2 . . 1 . . . . Leg 3 | . . . 2 . . 1 . Wheel . | . . . . . . . . Hover . | . . . . . . . . Flight . | . . . . . . . . Utility 6 | . 1 . 1 2 . 2 . Device 4 | . . . . 2 . 2 . Storage . | . . . . . . . . Processor 1 | . . . 1 . . . . Hackware . | . . . . . . . . Protection 1 | . 1 . . . . . . Artifact . | . . . . . . . . Weapon 17 | 2 . 1 7 1 . 1 5 Energy Gun 4 | 2 . . . . . 1 1 Energy Cannon 2 | . . . 2 . . . . Ballistic Gun 7 | . . . 5 1 . . 1 Ballistic Cannon 3 | . . 1 . . . . 2 Launcher 1 | . . . . . . . 1 Special Weapon . | . . . . . . . . Impact Weapon . | . . . . . . . . Slashing Weapon . | . . . . . . . . Piercing Weapon . | . . . . . . . . Special Melee Weapon . | . . . . . . . . Unidentified Prototypes 3 | . . . 2 . . . 1 Parts Lost 24 | . 1 . 6 . . 5 12 Power 5 | . . . 1 . . 2 2 Propulsion 5 | . . . 2 . . 2 1 Utility 3 | . . . 1 . . . 2 Weapon 11 | . 1 . 2 . . 1 7 Highest Loss Streak 7 | . 1 . 2 . . 2 7 To Critical Strikes 1 | . . . . . . 1 . Average Backups 3 | . . . 3 4 4 4 3 Power . | . . . . . . . . Propulsion . | . . . . . . . . Utility . | . . . . . . . . Weapon 3 | . . . 3 4 4 4 2 Tool/Special . | . . . . . . . . Unused Backups 4 | . . . 2 1 . . 1 Power . | . . . . . . . . Propulsion . | . . . . . . . . Utility 1 | . . . . . . . 1 Weapon 3 | . . . 2 1 . . . Tool/Special . | . . . . . . . . Average Slot Usage (%) 79 | . 82 81 60 99 100 93 67 Engine 5 | . 14 14 7 . . 3 7 Core 4 | . . . . 11 11 4 . Treads 8 | . 28 28 13 . . . . Leg 11 | . . . 5 22 22 21 8 Device 10 | . . . . 21 22 20 17 Processor 5 | . . . . 11 11 11 8 Protection 2 | . 13 14 1 . . . . Energy Gun 4 | . 26 14 . . . 3 10 Energy Cannon 1 | . . . 4 1 . . . Ballistic Gun 22 | . . . 25 31 33 28 8 Ballistic Cannon 1 | . . 10 . . . . 1 Peak Build Rating 31 | 5 6 10 22 24 24 31 26 Average Rating 17 | 3 5 8 11 23 24 24 22 On Entrance 14 | . 5 5 10 22 24 24 24 Naked Turns 3 | . . . . . . . 3 Heaviest Build 21 | 9 10 17 20 19 18 21 21 Greatest Support 40 | 40 40 40 40 30 30 30 15 Greatest Overweight (x) 5 | 2 . . 5 . . 1 5 Average Overweight (x) . | . . . . . . . . Largest Inventory Capacity 5 | 5 5 5 5 5 5 5 5 Average Capacity 5 | 5 5 5 5 5 5 5 5 Most Carried 5 | 3 1 1 5 5 5 5 5 Average Carried 3 | . . . 3 4 5 5 4 Final Capacity 5 | 5 5 5 5 5 5 5 5 Final Carried 5 | . . . 5 5 5 5 3 Class Distribution -------------------- 39% | Skirmisher 23% | Gunner 17% | Mutant 13% | Scavenger-Skirmisher 5% | Tank Dominant Class ---------------- Mutant | -10/Materials Mutant | -10/Mines Gunner | -9/Materials Skirmisher | -9/Mines Skirmisher | -9/Exiles Skirmisher | -8/Mines Scavenger-Skirmisher | -8/Materials Resources | -11 -10 -10 -9 -9 -9 -8 -8 ----------- Run | Yrd Mat Min Mat Min Exi Min Mat Matter Collected 3031 | 250 10 5 1326 566 . 259 615 Remotely . | . . . . . . . . Salvage Created 4536 | . 288 . 1969 833 . 347 1099 Parts 295 | . 10 . 141 53 . 19 72 Haulers Intercepted 7 | . 1 . 5 . . . 1 Recyclers Shooed 10 | . . . . 2 . . 8 Parts Field Recycled . | . . . . . . . . Retrieved Matter . | . . . . . . . . Parts Self-Destructed . | . . . . . . . . Prevented . | . . . . . . . . Kills | -11 -10 -10 -9 -9 -9 -8 -8 ------- Run | Yrd Mat Min Mat Min Exi Min Mat Combat Hostiles Destroyed 80 | . 2 . 35 16 . 10 17 Guns 62 | . 2 . 30 12 . 10 8 Cannons 11 | . . . 4 4 . . 3 AOE 7 | . . . 1 . . . 6 Classes Destroyed 16 | . 3 . 9 3 . . 1 Worker 12 | . 1 . 6 3 . . 2 Builder 15 | . . . 8 . . . 7 Tunneler 7 | . . . 3 3 . 1 . Hauler 7 | . 1 . 5 . . . 1 Recycler 10 | . . . 3 4 . . 3 Operator 2 | . . . 2 . . . . Watcher 2 | . . . 2 . . . . Swarmer 20 | . . . 10 4 . 6 . Cutter 1 | . . . . . . . 1 Grunt 40 | . 2 . 14 9 . 3 12 Brawler 4 | . . . 2 . . 1 1 Duelist 3 | . . . 1 . . . 2 Protector 1 | . . . . 1 . . . Sentry 9 | . . . 8 . . . 1 Demolisher 1 | . . . . 1 . . . Assembled 1 | . . . . 1 . . . Best Kill Streak 16 | . 2 . 16 6 . 4 13 Combat Bots Only 8 | . 2 . 8 5 . 3 5 Max Kills in Single Turn 2 | . 1 . 2 1 . 2 2 Gunslinging 1 | . . . 1 . . 1 . Exploded 1 | . . . 1 . . . 1 Melee . | . . . . . . . . Uniques/NPCs Destroyed . | . . . . . . . . Combat | -11 -10 -10 -9 -9 -9 -8 -8 -------- Run | Yrd Mat Min Mat Min Exi Min Mat Hostile Shots Fired 348 | . 21 . 132 48 . 35 112 Missed 114 | . 3 . 54 14 . 8 35 Hits 234 | . 18 . 78 34 . 27 77 Melee 13 | . . . . . . 2 11 Projectile 221 | . 18 . 78 34 . 25 66 AOE 3 | . . . . 3 . . . Critical Strikes 11 | . 1 . . . . 4 6 Actively Blocked 1 | . 1 . . . . . . Damage Taken 3658 | . 301 . 987 492 . 340 1538 Core 997 | . 66 . 170 122 . 84 555 Absorbed by Shields . | . . . . . . . . Redirected to Shielding 52 | . 39 . 13 . . . . Regen/Repaired (Parts) 212 | . . . 212 . . . . Core Remaining (%) 59 | 100 . 73 . . . 6 . Volleys Fired 302 | . 27 2 111 50 . 37 75 Largest 3 | . 2 2 3 3 . 3 3 Hottest 142 | . 80 88 118 118 . 119 142 Shots Fired 790 | . 49 4 314 150 . 91 182 Gun 674 | . 49 2 265 132 . 91 135 Cannon 102 | . . 2 49 18 . . 33 Launcher 14 | . . . . . . . 14 Special . | . . . . . . . . Kinetic 571 | . . 2 272 132 . 66 99 Thermal 136 | . . . 35 18 . 25 58 Explosive 14 | . . . . . . . 14 Electromagnetic 69 | . 49 2 7 . . . 11 Robot Hit Streak 14 | . 10 3 14 7 . 13 7 Robot Miss Streak 8 | . 2 1 8 5 . 6 5 Penetration Max 1 | . . . 1 . . . 1 Secondary Targets 11 | . . . 6 2 . 3 . Max Gunslinging Chain 1 | . . . 1 1 . 1 . Shots Hit Robots 389 | . 18 3 176 72 . 37 83 Core Hits 212 | . 6 . 94 36 . 18 58 Critical Kills 6 | . . . 2 1 . . 3 Critical Parts Destroyed 9 | . . 2 1 1 . . 5 Critical Strikes 16 | . . 2 3 2 . . 9 Burn 1 | . . . . . . . 1 Destroy 15 | . . 2 3 2 . . 8 Melee Attacks . | . . . . . . . . Impact . | . . . . . . . . Slashing . | . . . . . . . . Piercing . | . . . . . . . . Sneak Attacks . | . . . . . . . . Combat Hostiles . | . . . . . . . . Follow-up Attacks . | . . . . . . . . Damage Inflicted 8189 | . 238 74 3416 1274 . 637 2550 Guns 5685 | . 238 13 2459 1093 . 637 1245 Cannons 1285 | . . 61 530 181 . . 513 Explosions 1219 | . . . 427 . . . 792 Melee . | . . . . . . . . Ramming . | . . . . . . . . Kinetic 5305 | . . 61 2517 1093 . 542 1092 Thermal 1255 | . . . 407 181 . 95 572 Explosive 1219 | . . . 427 . . . 792 Electromagnetic 410 | . 238 13 65 . . . 94 Impact . | . . . . . . . . Slashing . | . . . . . . . . Piercing . | . . . . . . . . Highest Corruption 4 | . . . . . . 4 . Average Corruption 4 | . . . . . . 4 . Corruption Purged . | . . . . . . . . Corruption Blocked . | . . . . . . . . Effects 9 | . . . . . . 9 . Message Errors 2 | . . . . . . 2 . Matter Fused 2 | . . . . . . 2 . Parts Fused 1 | . . . . . . 1 . Data Loss (minor) 1 | . . . . . . 1 . Data Loss (major) 1 | . . . . . . 1 . Misfires 2 | . . . . . . 2 . Overload Shots . | . . . . . . . . Overflow Damage 240 | . . 15 132 . . . 93 Projectiles 69 | . . 15 8 . . . 46 Explosions 171 | . . . 124 . . . 47 Melee . | . . . . . . . . Knockbacks 8 | . . 1 2 . . . 5 Impact . | . . . . . . . . Kinetic 8 | . . 1 2 . . . 5 Secondary . | . . . . . . . . Self-Inflicted Damage 123 | . . . 81 . . . 42 Shots 3 | . . . 2 . . . 1 Rammed . | . . . . . . . . Targets Rammed . | . . . . . . . . Kicked . | . . . . . . . . Crushed . | . . . . . . . . Highest Temperature 271 | . 138 54 240 271 . 109 47 Average Temperature 51 | . 53 30 57 70 . 23 11 Received Heat Transfer 1098 | . 144 . 282 105 . 144 423 Siege Activations . | . . . . . . . . Martial Activations . | . . . . . . . . Shielding Activations . | . . . . . . . . Robots Disrupted . | . . . . . . . . Combat Hostiles . | . . . . . . . . Robots Corrupted . | . . . . . . . . Combat Hostiles . | . . . . . . . . Parts Fried 2 | . 2 . . . . . . Impact Corruptions . | . . . . . . . . Robots Melted . | . . . . . . . . Combat Hostiles . | . . . . . . . . Parts Melted 2 | . . . 1 . . . 1 Heat Transferred 2442 | . . . 740 333 . 185 1184 Parts Sabotaged . | . . . . . . . . Parts Stolen . | . . . . . . . . Parts Stripped . | . . . . . . . . Power Chain Reactions . | . . . . . . . . Alert | -11 -10 -10 -9 -9 -9 -8 -8 ------- Run | Yrd Mat Min Mat Min Exi Min Mat Maximum Alert Level 3 | . . . 3 2 . . 1 Low Security (%) 39 | 100 100 100 27 2 . 100 44 Level 1 31 | . . . 3 84 . . 55 Level 2 25 | . . . 60 13 . . . Level 3 3 | . . . 9 . . . . Level 4 . | . . . . . . . . Level 5 . | . . . . . . . . High Security . | . . . . . . . . Max Security . | . . . . . . . . Peak Influence 755 | . 54 17 755 460 . 101 399 Initial 290 | . . 17 . 290 . . 33 Average 276 | . 7 1 438 308 . 28 223 Influence Increases 2921 | . 137 1 1383 420 . 277 703 Destroy 0b10 Robot/C 1560 | . 40 . 700 280 . 200 340 Destroy 0b10 Robot/NC 280 | . 10 . 145 55 . 5 65 Destroy Leader 348 | . 12 . 184 50 . 40 62 Allied During Kill 7 | . . . . 5 . 2 . Successful Hack 8 | . . . 8 . . . . Disable Machine 330 | . 45 . 150 30 . . 105 Destroy Structure 193 | . . 1 91 . . . 101 Lose Combat Pursuer 195 | . 30 . 105 . . 30 30 Influence Decreases 2608 | . 91 47 637 974 192 192 475 Entered New Map 729 | . . 29 . 456 192 . 52 Time Decay 1636 | . 81 18 577 518 . 132 310 Lost Part 223 | . 10 . 60 . . 40 113 Lost Ally 20 | . . . . . . 20 . Squads Dispatched 10 | . . . 4 1 . . 5 Investigation 2 | . . . 2 . . . . Extermination . | . . . . . . . . Reinforcement 7 | . . . 2 . . . 5 Assault 1 | . . . . 1 . . . Garrison . | . . . . . . . . Intercept . | . . . . . . . . Searches Triggered . | . . . . . . . . Construction Impeded 2 | . . . . . . . 2 Haulers Reinforced . | . . . . . . . . Active Scanning Responses . | . . . . . . . . Cargo Convoy Interrupts . | . . . . . . . . Stealth | -11 -10 -10 -9 -9 -9 -8 -8 --------- Run | Yrd Mat Min Mat Min Exi Min Mat Distress Signals 6 | . . . 2 . . . 4 Communications Jammed . | . . . . . . . . Distress Signals . | . . . . . . . . Times Spotted 114 | . 3 . 49 19 . 12 31 Peak Tracking Total 7 | . 3 . 6 5 . 3 7 Tactical Retreats 9 | . 2 . 4 . . 1 2 Traps | -11 -10 -10 -9 -9 -9 -8 -8 ------- Run | Yrd Mat Min Mat Min Exi Min Mat Traps Triggered 4 | . 1 . 3 . . . . Indirectly . | . . . . . . . . Trap Hack Attempts . | . . . . . . . . Triggered . | . . . . . . . . Disarmed . | . . . . . . . . Reprogrammed . | . . . . . . . . Reused . | . . . . . . . . Traps Extracted . | . . . . . . . . Installed . | . . . . . . . . Triggered . | . . . . . . . . Machines | -11 -10 -10 -9 -9 -9 -8 -8 ---------- Run | Yrd Mat Min Mat Min Exi Min Mat Machines Disabled 22 | . 3 . 10 2 . . 7 Max in Single Turn 2 | . 1 . 1 1 . . 2 Machines Repaired . | . . . . . . . . Machines Dismantled . | . . . . . . . . Machines Sabotaged . | . . . . . . . . Overloaded Fab Kills . | . . . . . . . . Hacking | -11 -10 -10 -9 -9 -9 -8 -8 --------- Run | Yrd Mat Min Mat Min Exi Min Mat Machines Accessed 10 | . 1 . 3 . 5 . 1 Terminals 3 | . 1 . 2 . . . . Fabricators . | . . . . . . . . Repair Stations 1 | . . . 1 . . . . Recycling Units . | . . . . . . . . Scanalyzers 1 | . . . . . . . 1 Garrison Access . | . . . . . . . . Total Hacks 74 | . 3 . 19 . 50 . 2 Successful 66 | . 2 . 12 . 50 . 2 Failed 8 | . 1 . 7 . . . . Catastrophic 1 | . . . 1 . . . . Database Lockouts . | . . . . . . . . Manual 2 | . . . . . 2 . . Terminals 8 | . 3 . 5 . . . . Fabricators . | . . . . . . . . Repair Stations 14 | . . . 14 . . . . Recycling Units . | . . . . . . . . Scanalyzers 2 | . . . . . . . 2 Garrison Access . | . . . . . . . . Terminal Hacks 54 | . 2 . 2 . 50 . . Record 51 | . 1 . 1 . 49 . . Prototype ID Bank 1 | . . . 1 . . . . Emergency Access Points 1 | . 1 . . . . . . Proto ID Catalog 1 | . . . . . 1 . . Fabricator Hacks . | . . . . . . . . Repair Station Hacks 10 | . . . 10 . . . . Scan Component 5 | . . . 5 . . . . Repair 5 | . . . 5 . . . . Recycling Unit Hacks . | . . . . . . . . Scanalyzer 2 | . . . . . . . 2 Insert Component 1 | . . . . . . . 1 Analyze 1 | . . . . . . . 1 Garrison Access Hacks . | . . . . . . . . Unauthorized Hacks . | . . . . . . . . Terminals . | . . . . . . . . Fabricators . | . . . . . . . . Repair Stations . | . . . . . . . . Recycling Units . | . . . . . . . . Scanalyzers . | . . . . . . . . Garrison Access . | . . . . . . . . Data Cores Recovered 1 | . . . 1 . . . . Used . | . . . . . . . . Hacking Detections 5 | . 1 . 3 . . . 1 Full Trace Events 2 | . . . 2 . . . . Feedback Events . | . . . . . . . . Feedback Blocked . | . . . . . . . . Robot Schematics Acquired . | . . . . . . . . Robots Built . | . . . . . . . . Authchips . | . . . . . . . . Time . | . . . . . . . . Total Robot Build Rating . | . . . . . . . . Part Schematics Acquired 1 | . . . . . . . 1 Parts Built . | . . . . . . . . Authchips . | . . . . . . . . Time . | . . . . . . . . Total Part Build Rating . | . . . . . . . . Parts Repaired 5 | . . . 5 . . . . Time 160 | . . . 160 . . . . Parts Recycled . | . . . . . . . . Recycled Matter . | . . . . . . . . Retrieved Matter . | . . . . . . . . Retrieved Components . | . . . . . . . . Parts Scanalyzed 1 | . . . . . . . 1 Part Schematics Acquired 1 | . . . . . . . 1 Parts Damaged 1 | . . . . . . . 1 Bothacking | -11 -10 -10 -9 -9 -9 -8 -8 ------------ Run | Yrd Mat Min Mat Min Exi Min Mat Used RIF Installer . | . . . . . . . . Robots Hacked . | . . . . . . . . Non-combat . | . . . . . . . . Combat . | . . . . . . . . Robot Hacks Applied . | . . . . . . . . Relay Couplers Released . | . . . . . . . . Fabnet Peak Effective % . | . . . . . . . . Robots Rewired . | . . . . . . . . Allies Hacked . | . . . . . . . . Hacks Repelled . | . . . . . . . . Allies | -11 -10 -10 -9 -9 -9 -8 -8 -------- Run | Yrd Mat Min Mat Min Exi Min Mat Total Allies 1 | . . . . 1 . . . Largest Group 1 | . . . . 1 1 1 . Highest-Rated Group 31 | . . . . 31 31 31 . Highest-Rated Ally 31 | . . . . 31 31 31 . Total Orders . | . . . . . . . . Ally Attacks 12 | . . . . 11 . 1 . Total Damage 145 | . . . . 123 . 22 . Kills . | . . . . . . . . Allies Corrupted . | . . . . . . . . Allies Melted . | . . . . . . . . Intel | -11 -10 -10 -9 -9 -9 -8 -8 ------- Run | Yrd Mat Min Mat Min Exi Min Mat Active Infowar (turns) 3019 | . . . 129 1434 300 480 676 Optics 3019 | . . . 129 1434 300 480 676 Robot Analysis Total . | . . . . . . . . Derelict Logs Recovered 4 | . . 1 . 3 . . . Drone Launches . | . . . . . . . . Drone Recoveries . | . . . . . . . . Exploration | -11 -10 -10 -9 -9 -9 -8 -8 ------------- Run | Yrd Mat Min Mat Min Exi Min Mat Turns Passed 5629 | 54 456 256 1963 1434 300 480 686 Spaces Moved 2994 | 33 231 156 846 1049 251 226 202 Core 92 | 12 . . 79 . . . 1 Treads 923 | 21 231 156 515 . . . . Legs 1979 | . . . 252 1049 251 226 201 Wheels . | . . . . . . . . Hover . | . . . . . . . . Flight . | . . . . . . . . Fastest Speed 50 | 50 160 160 120 120 120 120 120 Average Speed 140 | 138 160 160 161 120 120 120 174 Slowest Speed 300 | 160 160 160 300 120 120 190 300 Overloaded Moves . | . . . . . . . . Propulsion Burnouts . | . . . . . . . . Robots Hopped . | . . . . . . . . Potential Cave-ins . | . . . . . . . . Cave-ins Triggered . | . . . . . . . . Exploration Rate (%) 47 | 3 36 39 73 98 66 43 25 Regions Visited 7 Branch Regions 4 Pre-discovered Areas 5 | . . 1 . 3 1 . . Known Exits Taken . | . . . . . . . . Unknown Exits Taken 7 | 1 1 1 1 1 1 1 . Scrap Searched 2 | . . . . 2 . . . Spaces Dug 6 | . . . . . . . 6 Terrain Destroyed 214 | . . 1 98 . . . 115 Melee . | . . . . . . . . Projectile 26 | . . 1 8 . . . 17 AOE 188 | . . . 90 . . . 98 Terrain Rammed . | . . . . . . . . Walls Destroyed . | . . . . . . . . Machines Disabled . | . . . . . . . . Actions | -11 -10 -10 -9 -9 -9 -8 -8 --------- Run | Yrd Mat Min Mat Min Exi Min Mat Total 3843 | 42 269 159 1220 1137 250 374 392 Wait 444 | . 10 . 206 32 . 104 92 Move 2987 | 32 230 155 845 1048 250 225 202 Hop . | . . . . . . . . Pick Up 39 | 5 1 1 23 2 . . 7 Fast Attach 10 | . . . 3 2 . 5 . Attach 26 | 5 1 1 9 . . . 10 Detach 5 | . . . 3 . . . 2 Swap 14 | . . . 9 1 . 1 3 Drop 16 | . . . 11 2 . 2 1 Fire 302 | . 27 2 111 50 . 37 75 Melee . | . . . . . . . . Ram . | . . . . . . . . Kick . | . . . . . . . . Crush . | . . . . . . . . Escape Stasis . | . . . . . . . . Rewire . | . . . . . . . . Trap . | . . . . . . . . Miscellaneous . | . . . . . . . . Route ------- -11/Scrapyard -10/Materials -10/Mines -9/Materials (discovered 2 exits: *Mat / [*Min]) -9/Mines (discovered 3 exits: *Mat x2 / *Exi) -9/Exiles (discovered 2 exits: [*Min x2]) -8/Mines -8/Materials (discovered 1 exit: [*Fac]) History --------- Turn | Location | Event 19 | -11/Scrapyard | Discovered new exit (range 15) 55 | -11/Scrapyard | Entered Materials 318 | -10/Materials | Build established: Mutant 391 | -10/Materials | Discovered new exit (range 15) 511 | -10/Materials | Entered Mines 561 | -10/Mines | A weapon hastily lodged in a ceiling crevice suddenly fell to the ground 732 | -10/Mines | Discovered new exit (range 8) 753 | -10/Mines | Learned location of Storage (-7) 767 | -10/Mines | Entered Materials 767 | -9/Materials | Evolved 2 slots: Utility x1, Weapon x1 1404 | -9/Materials | Build established: Gunner 1407 | -9/Materials | Destroyed 8 combat bots 1511 | -9/Materials | Repaired Shotgun 1511 | -9/Materials | Repaired Shotgun 1543 | -9/Materials | Repaired Shotgun 1588 | -9/Materials | Repaired Shotgun 1622 | -9/Materials | Repaired Shotgun 2565 | -9/Materials | Discovered new exit (range 15) 2698 | -9/Materials | Discovered new exit (range 17) 2730 | -9/Materials | Entered Mines 2731 | -9/Mines | Assembled infested the area 2790 | -9/Mines | Core integrity fell below 50% 2819 | -9/Mines | Learned location of Zion (-6) 2855 | -9/Mines | Received a Rocket Launcher from a helpful Derelict 2877 | -9/Mines | Build established: Skirmisher 3157 | -9/Mines | Discovered new exit (range 8) 3369 | -9/Mines | Deemed a non-threat by the Exiles lab entrance 3369 | -9/Mines | Discovered new exit (range 5) 3400 | -9/Mines | Met a Derelict testing a Signal Generator 3411 | -9/Mines | Discovered new exit (range 8) 3416 | -9/Mines | Found Signal Generator 4164 | -9/Mines | Entered Exiles 4164 | -9/Exiles | Accompanied by 1 ally 4180 | -9/Exiles | Discovered new exit (range 18) 4193 | -9/Exiles | Met 8R-AWN 4214 | -9/Exiles | Met EX-HEX 4256 | -9/Exiles | Met EX-BIN 4270 | -9/Exiles | Aligned with FarCom system 4271 | -9/Exiles | Given EX-Vault access code 4338 | -9/Exiles | Opened EX-Vault 4368 | -9/Exiles | Warned to stay clear of 0b10 Research branches 4401 | -9/Exiles | Met EX-DEC 4451 | -9/Exiles | Discovered new exit (range 12) 4464 | -9/Exiles | Entered Mines 4464 | -8/Mines | Accompanied by 1 ally 4642 | -8/Mines | Core integrity fell below 20% 4930 | -8/Mines | Discovered new exit (range 4) 4944 | -8/Mines | Entered Materials 4944 | -8/Materials | Evolved 2 slots: Utility x2 5098 | -8/Materials | Build established: Scavenger-Skirmisher 5234 | -8/Materials | Lost 3 parts (3w) 5381 | -8/Materials | Discovered new exit (range 20) 5622 | -8/Materials | Core integrity fell below 50% 5628 | -8/Materials | Core integrity fell below 20% 5630 | -8/Materials | Destroyed by H-55 Commando with Assault Rifle Last Messages --------------- Ion Engine destroyed. Destroyed Ion Engine. Imp. Heat Sink destroyed. Destroyed Imp. Heat Sink. C-17 Slicer destroyed. Penetrated by Slug. Imp. Heat Sink destroyed. Rocket Launcher destroyed. Adv. Visual Processing Unit severed. Slug penetrates Pressure Siphon. Flak Cannon severed. ALERT: Construction progress impeded, dispatching reinforcements to local area. The unstable cave ceiling collapses. Penetrated by Slug. Assault Cannon severed. Adv. Beam Cannon destroyed. U-05 Engineer builds a Wall. Acquired Flak Cannon. Penetrated by Slug. Map ----- +----------------------------------------------------+ | ?????????????????????????????????????????????????? | | ?????????????????????????????????????????????????? | | ?????????????????????????????????????????????????? | | ?????????????????????????????????????????????????? | | ?????????????????????????????????????????????????? | | ?????????????????????????????????????????????????? | | ?????????????????????????????????????????????????? | | ?????????????????????????????????????????????????? | | ?????????????????????????????????????????????????? | | ?????????????????????????????????????????????????? | | ??????????????????????#+?????????????????????????? | | ??????????????????????# ?????????????????????????? | | ??????????????????????# ?????????????????????????? | | #########?????????????# #????????????????????????? | | "" #?????????????+ #????????????????????????? | | ""S #?????????????# #####????????????????????? | | "" #???????####### ######???????????????????? | | #???????+ ????????????????????? | | #???????# ###???????????????????? | | """ [ #???????# """ ###???????????????????? | | """ #???????# """" % #????????????????????? | | """ #???????# """"% ##????????##??????????? | | ######### ##????? #?? ?????? | | ####+########## ##;# # #???? | | # "% c #???? | | # < gg h % %@ ! %* #???? | | # ^ " %c # ! ! H ?? | | ####+########## ] # # ###???? | | ######### # ##?? ????? | | # % ## ##??????" ???? | | # ### #??????????? ???? | | # *#?# #???????????????? | | " """ # # " #?# #???????????????? | | " """ # #?# #??? ???????????? | | " """ # # #?# #???""??????????? | | # #u ######?# #??""???????????? | | ####### # r #??????# #? "????????????? | | ??????# # #??????# h# ?????????????? | | ??????########## ######## # ??????????????? | | ????????# + "????????????? | | ????????# ########### #???????????????? | | ????????# # # #???????????????# | | ????????# #######+## """ # ############## | | ????????#??# # """ # | | ???????????# # """%+ ! | | ???????????# # " " # | | ???????????# # "R" # #### ####### | | ???????##??# = # "" [! # #??# #????????? | | ???????? ## # = # #??# #????????? | | ?????????? + ###"#/##"## #??# #????????? | +----------------------------------------------------+ Best States ------------- Heat Dissipation 59 Energy Generation 18 Energy Capacity 280 Matter Stores 300 Matter Capacity 300 Sight Range 20 Terrain Scan Density 10 Propulsion Shielding 33 Evasion (%) 55 Recoil Reduction 2 Item Schematics ----------------- Hvy. EM Shotgun | -8/Materials | Scanalyzed Robot Schematics ------------------ None Fabricated ------------ Nothing Repaired ---------- Shotgun | 37% | -9/Materials Shotgun | 61% | -9/Materials Shotgun | 16% | -9/Materials Alien Tech Used ----------------- None Achievements -------------- None Challenges ------------ None Game ------ Seed ExoskeletonProjectionReactor Manual? 0 Play Time 00:39:07 Cumulative 35.5 hours Start 2025.07.02 @ 19:58:23 End 2025.07.02 @ 20:37:08 Sessions 1 Manual Loads 0 Difficulty Rogue Special Mode None Game No. 170 Rogue 170 Adventurer 0 Explorer 0 Win Type - Total 0 Types 0/0/0/0/0/0/0/0/0/0 Lore% 22 Gallery% 23 Achievement% 19 Wizard Run 0 Options --------- Layout 2 ASCII 0 Keyboard 0 Movement Mouse Keybinds 0 Fullscreen 1 Font 24/Smallcaps Map View 50x44 Zoom Use 0% Tactical HUD 0 Map Filters NONE Filters NONE Steam 1 RUN: 5835248f-7ba5-4a0d-be46-d602a67627cd